[Event "87th Spanish Championship 2022"]
[Site "Linares"]
[Date "2022.08.11"]
[Round "1.35"]
[White "Rodriguez Redondo, Adhara"]
[Black "Domingo Nunez, Ruben"]
[Result "0-1"]
[ECO "C50"]
[WhiteElo "2076"]
[BlackElo "2361"]
[Annotator "TA"]
[PlyCount "70"]
[EventDate "2022.08.11"]
[EventType "swiss"]
[EventCountry "ESP"]
[SourceTitle "playchess.com"]
[Source "ChessBase"]
[SourceQuality "1"]
[TimeControl "5400+30"]

{[%evp 9,70,18,18,18,18,6,33,32,33,22,24,37,25,29,22,3,17,18,24,7,0,0,75,67,67,67,75,5,13,16,20,0,0,-93,-23,-109,-104,-104,-104,-147,-115,-353,-358,-327,-351,-322,-322,-371,-202,-193,-136,-302,-283,-317,-316,-302,-306,-837,-829,-815,-815,-767,-677]} 1. e4 {[%emt 0:00:06]} e5 {[%emt 0:00:35]} 2. Nf3 {[%emt 0:00:25]} Nc6 {[%emt 0:00:05]} 3. Bc4 {[%emt 0:00:06]} Bc5 {[%emt 0:02:46]} 4. d3 {[%emt 0:00:08]} Nf6 {[%emt 0:00:11]} 5. O-O {[%emt 0:00:19]} O-O {[%emt 0:00:50]} 6. a4 {[%emt 0:00:05] C50: Hungarian Defence and Giuoco Pianissimo.} a5 {[%emt 0:10:31]} 7. c3 {[%emt 0:01:41]} d5 {[%emt 0:00:10]} 8. exd5 {[%emt 0:00:05] White is slightly better.} Nxd5 {[%emt 0:00:04]} 9. Re1 {[%emt 0:01:13]} Bg4 {[%emt 0:00:42]} 10. Nbd2 {[%emt 0:01:10][%cal Bb1d2,Bd2e4,Be4g3][%mdl 32]} Nb6 {[%emt 0:01:19]} 11. Bb5 {[%emt 0:00:42]} Bd6 {[%emt 0:00:17]} 12. h3 {[%emt 0:03:24]} Bh5 {[%emt 0:01:15]} 13. Ne4 {[%emt 0:00:58]} f5 {[%emt 0:11:48]} 14. Ng3 {[%emt 0:12:50]} (14. Bg5 $5 {[%cal Rg5d8]} Qd7 15. Nxd6 Qxd6 16. Qb3+ Bf7 17. Qa3 $14) 14... Bxf3 {[%emt 0:00:23]} 15. Qxf3 {[%emt 0:00:54]} Qd7 {[%emt 0:00:09]} (15... Ne7 $1 $11) 16. Nf1 $16 {[%emt 0:21:07]} Rae8 {[%emt 0:03:35]} 17. Be3 {[%emt 0:05:23] [#]} Nc8 $146 {[%emt 0:20:58]} ({Predecessor:} 17... Kh8 18. Rad1 Re6 19. b4 axb4 20. a5 Nc8 21. a6 e4 22. dxe4 Re5 23. axb7 Rxb5 24. bxc8=Q Qxc8 25. exf5 {1-0 (51) Worek,J (2293)-Krivec,J (2232) Le Castella 2018}) 18. Bxc6 {[%emt 0:07:41]} (18. Qh5 $16) 18... bxc6 {[%emt 0:00:22]} 19. Bd2 {[%emt 0:10:54]} Nb6 {[%emt 0:26:27]} 20. c4 {[%emt 0:09:58]} Bc5 {[%emt 0:04:53][%cal Oe5e4]} 21. b4 {[%emt 0:16:22]} (21. Bxa5 $11 {keeps the balance.} e4 22. Qf4 (22. dxe4 $2 fxe4 23. Qb3 Bxf2+ 24. Kh1 Bxe1 $19)) 21... Bd4 {[%emt 0:03:58]} (21... Bxb4 22. Bxb4 axb4 23. a5 $11) (21... e4 $17 22. Qd1 axb4) 22. Ra3 {[%emt 0:01:52]} (22. bxa5 $11 Bxa1 23. axb6) 22... axb4 {[%emt 0:01:34]} 23. Bxb4 {[%emt 0:00:30]} c5 {[%emt 0:00:04]} 24. Ba5 {[%emt 0:02:17]} Nxa4 {[%emt 0:04:55][%cal Oe5e4] Black is more active.} 25. Bxc7 $2 {[%emt 0:01:45] [#]} e4 $1 $19 {[%emt 0:00:26]} ({Worse is} 25... Qxc7 26. Rxa4 e4 27. Qd1 $17) 26. Qg3 {[%emt 0:00:43]} Nb2 {[%emt 0:00:55]} 27. dxe4 {[%emt 0:00:45]} fxe4 {[%emt 0:00:12]} ({Weaker is} 27... Nxc4 28. Ra2 $17) 28. Ne3 {[%emt 0:00:35]} Nxc4 {[%emt 0:02:35]} 29. Ra7 {[%emt 0:00:24]} Nxe3 {[%emt 0:01:03]} (29... Qf7 $19 {And now ...h5 would win.} 30. Bb6 {[#]} Qf6 $1) 30. fxe3 $2 {[%emt 0:00:20] [#] Now White is beyond hope.} (30. Bb8 $17 Ng4 31. Rxd7 Bxf2+ 32. Qxf2 Nxf2 33. Bd6) 30... Be5 $1 {[%emt 0:00:15][%mdl 512]} 31. Qg4 {[%emt 0:00:37]} (31. Bxe5 Qxa7) 31... Qf7 {[%emt 0:00:44] ( -> ...Qf2+)} 32. Bxe5 {[%emt 0:00:37]} Qxa7 {[%emt 0:00:07]} 33. Qxe4 {[%emt 0:00:28]} (33. Bd6 Rf7 34. Qe2) 33... Qf7 {[%emt 0:00:34] ...Qf2+ is the strong threat. Black is clearly winning.} 34. Rc1 {[%emt 0:00:32]} Qe6 {[%emt 0:00:19]} 35. Rxc5 {[%emt 0:00:26]} Rf5 {[%emt 0:00:03] Weighted Error Value: White=0.46/Black=0.17 (very precise)} ({Stronger than} 35... Qf7 36. Qg4 h6 37. Kh2 $17) 0-1

[Event "87th Spanish Championship 2022"]
[Site "Linares"]
[Date "2022.08.11"]
[Round "1.36"]
[White "Martinez Fernandez, Adrian"]
[Black "Jimenez Fernandez, Rebeca"]
[Result "0-1"]
[ECO "B76"]
[WhiteElo "2366"]
[BlackElo "1908"]
[Annotator "TA"]
[PlyCount "106"]
[EventDate "2022.08.11"]
[EventType "swiss"]
[EventCountry "ESP"]
[SourceTitle "playchess.com"]
[Source "ChessBase"]
[SourceQuality "1"]
[TimeControl "5400+30"]

{[%evp 25,106,31,29,21,21,35,39,27,32,0,29,-154,-163,-177,-152,-159,-160,-154,-175,-171,-131,-142,-142,-142,-140,-140,-136,-188,-183,-218,-192,-232,-237,-259,-222,-266,-243,-264,-288,-281,-274,-297,-299,-302,-305,-367,-374,-402,-412,-385,-354,-453,-399,-584,0,-577,-541,-737,-606,-4222,-1416,-6087,-6070,-29986,-29987,-29987,-29986,-29986,-29987,-29987,-29987,-29993,-29994,-29994,-29987,-29986,0,-29997,-29988,-29988,-29989,-29986,-29987]} 1. e4 {[%emt 0:00:02]} c5 {[%emt 0:00:06]} 2. Nf3 {[%emt 0:00:08]} d6 {[%emt 0:00:03]} 3. d4 {[%emt 0:00:50]} cxd4 {[%emt 0:00:06]} 4. Nxd4 {[%emt 0:00:06]} Nf6 {[%emt 0:00:04]} 5. Nc3 {[%emt 0:00:08]} g6 {[%emt 0:00:06]} 6. Be3 Bg7 {[%emt 0:00:07]} 7. f3 {[%emt 0:00:13]} Nc6 {[%emt 0:00:30]} 8. Qd2 {[%emt 0:00:08]} O-O {[%emt 0:00:05]} 9. O-O-O {[%emt 0:00:06]} d5 {[%emt 0:00:06]} 10. Qe1 {[%emt 0:00:11]} e5 {[%emt 0:00:53]} 11. Nxc6 {[%emt 0:00:07]} bxc6 {[%emt 0:00:04]} 12. exd5 {[%emt 0:00:08]} Nxd5 {[%emt 0:00:27]} 13. Bc4 {[%emt 0:00:18]} Be6 {[%emt 0:02:10]} 14. Kb1 {[%emt 0:00:06] B76: Sicilian Dragon: Yugoslav Attack, 9 g4 and 9 0-0-0.} a5 {[%emt 0:16:30]} 15. Ne4 {[%emt 0:05:27]} Qb8 {[%emt 0:06:36]} 16. Bc5 {[%emt 0:11:01] White is slightly better.} Rd8 {[%emt 0:03:12] [#]} 17. g4 $146 {[%emt 0:00:22]} ({Predecessor:} 17. h4 a4 18. h5 a3 19. b3 Nf4 20. Bxe6 Rxd1+ 21. Qxd1 Nxe6 22. hxg6 hxg6 23. Be7 {0-1 (41) Pichot,A (2570)-Reinberg,J (2162) Chess.com INT 2017}) 17... Nf4 {[%emt 0:03:57]} 18. Bd6 $2 {[%emt 0:10:11]} (18. Rxd8+ $11 Qxd8 19. Bxe6 Nxe6 20. Qc3) 18... Rxd6 $1 $17 {[%emt 0:14:31]} 19. Nxd6 {[%emt 0:00:38] [#] And now Bxe6 would win.} Bd5 {[%emt 0:06:36]} 20. Bxd5 {[%emt 0:08:38]} cxd5 {[%emt 0:00:12]} 21. Ne4 {[%emt 0:00:43]} dxe4 {[%emt 0:00:11]} 22. Qxe4 {[%emt 0:00:15]} Qe8 {[%emt 0:05:44] Prevents Rd7.} 23. h4 {[%emt 0:01:08]} Rb8 {[%emt 0:07:56]} 24. c3 {[%emt 0:02:00]} Qb5 {[%emt 0:09:32][%csl Gb8][%cal Rb5b2]} 25. Rh2 {[%emt 0:01:02]} a4 {[%emt 0:03:58][%cal Ba5a4,Ba4a3][%mdl 32]} 26. h5 {[%emt 0:09:44]} (26. a3 $17 {might work better.}) 26... a3 $40 {[%emt 0:01:06][%cal Ra3b2][%mdl 128] Black goes for the king.} 27. b3 {[%emt 0:00:26]} Ne6 {[%emt 0:02:37]} 28. Rc2 {[%emt 0:09:55]} Qc5 {[%emt 0:06:30]} 29. b4 {[%emt 0:09:12]} Qb6 {[%emt 0:01:39]} 30. Qc4 {[%emt 0:00:29]} Ng5 {[%emt 0:04:33]} 31. f4 {[%emt 0:08:37]} exf4 {[%emt 0:01:00]} 32. Qxf4 {[%emt 0:00:01]} Ne6 {[%emt 0:00:56]} 33. Qd6 {[%emt 0:01:27]} Qb7 {[%emt 0:01:32] Strongly threatening ...Rd8.} 34. Qd5 {[%emt 0:00:14]} Qc7 {[%emt 0:01:28]} 35. Qb3 {[%emt 0:00:26]} Qf4 {[%emt 0:00:31]} 36. hxg6 {[%emt 0:00:07]} hxg6 {[%emt 0:00:11]} 37. Qxa3 {[%emt 0:00:17]} Qxg4 {[%emt 0:00:32]} 38. Rf1 {[%emt 0:07:03]} Qc4 {[%emt 0:00:46]} 39. Rd1 {[%emt 0:01:20]} (39. Qc1 $142 Rd8 40. Rf3) 39... Qg4 $2 {[%emt 0:01:44]} ({Black should try} 39... Nc5 $19 40. Re1 Ne4) 40. Rdc1 $2 {[%emt 0:02:22][%mdl 8192]} (40. Rf1 $1 $11 {and White is okay.}) 40... Nc5 {[%emt 0:00:54] Threatens to win with ...Qe4.} 41. Qa5 {[%emt 0:04:47]} Nd3 {[%emt 0:00:25]} 42. Rh1 {[%emt 0:01:09] [#]} Nxb4 {[%emt 0:00:43][%mdl 512]} 43. cxb4 {[%emt 0:01:10]} (43. Qc7 Na6+) 43... Rxb4+ {[%emt 0:00:05]} 44. Kc1 {[%emt 0:00:01]} Qf4+ {[%emt 0:00:23]} 45. Rd2 {[%emt 0:00:01]} Rc4+ {[%emt 0:00:28]} 46. Kd1 {[%emt 0:00:40]} Qf3+ {[%emt 0:00:13]} 47. Re2 {[%emt 0:00:16]} Qxh1+ {[%emt 0:00:22]} 48. Re1 {[%emt 0:00:02]} Qf3+ {[%emt 0:00:32]} 49. Re2 {[%emt 0:00:10]} Qf1+ {[%emt 0:00:38]} 50. Qe1 {[%emt 0:00:22]} Qf3 $2 {[%emt 0:00:32]} (50... Rd4+ {mates} 51. Kc1 Qf4+ 52. Kb1 Qf5+ 53. Rc2 Rd8 54. Kc1 Bh6+ 55. Rd2 Qd3 56. Kd1 Bxd2 57. Qf1 Qxf1+ 58. Kc2 Qc1+ 59. Kb3 Qc3+ 60. Ka4 Qb4#) 51. Qf2 $2 {[%emt 0:00:48][%mdl 8192]} (51. Qa5 $11 Bh6 52. Qa8+ Kh7 53. Qa3 Qh1+ 54. Re1 Qd5+ 55. Ke2 Qg2+ 56. Kd3 Qc2#) 51... Rd4+ {[%emt 0:00:30] Black mates.} 52. Ke1 {[%emt 0:00:24]} Qh1+ {[%emt 0:00:10]} 53. Qf1 {[%emt 0:00:05] [#]} Rd1+ $3 {[%emt 0:00:14][%mdl 512] Weighted Error Value: White=1.11/Black=0.45} 0-1

[Event "87th Spanish Championship 2022"]
[Site "Linares"]
[Date "2022.08.12"]
[Round "2.1"]
[White "Santos Latasa, Jaime"]
[Black "Serarols Mabras, Bernat"]
[Result "1-0"]
[ECO "B31"]
[WhiteElo "2675"]
[BlackElo "2357"]
[Annotator "TA"]
[PlyCount "71"]
[EventDate "2022.08.11"]
[EventType "swiss"]
[EventCountry "ESP"]
[SourceTitle "playchess.com"]
[Source "ChessBase"]
[SourceQuality "1"]
[TimeControl "5400+30"]

{[%evp 9,71,31,28,23,32,18,9,11,16,16,16,18,17,32,34,32,58,60,64,60,66,67,66,67,81,78,190,178,205,201,208,220,217,207,209,207,192,194,298,302,272,191,334,325,319,268,321,261,276,0,279,273,521,448,549,446,415,212,468,450,522,553,954,916]} 1. e4 {[%emt 0:00:05]} c5 {[%emt 0:00:27]} 2. Nf3 {[%emt 0:00:08]} Nc6 {[%emt 0:00:33]} 3. Bb5 {[%emt 0:00:25]} g6 {[%emt 0:01:26]} 4. Bxc6 {[%emt 0:00:20]} dxc6 {[%emt 0:00:15]} 5. d3 {[%emt 0:00:05]} Qc7 {[%emt 0:01:30]} 6. h3 {[%emt 0:00:20] B31: Sicilian: 2...Nc6 3 Bb5 g6.} e5 {[%emt 0:02:21]} 7. a3 $5 {[%emt 0:01:09][%mdl 4] [#] An interesting side line.} f6 $146 {[%emt 0:03:22]} ({Predecessor:} 7... a5 8. Be3 f6 9. Nbd2 Nh6 10. c3 Be6 11. d4 cxd4 12. cxd4 Nf7 13. O-O Be7 {1-0 (47) Naiditsch,A (2175)-Czap,B Bad Wiessee 1997}) 8. Be3 {[%emt 0:03:52] The position is equal.} Nh6 {[%emt 0:09:17]} 9. Qd2 {[%emt 0:00:55]} Nf7 {[%emt 0:00:05]} 10. Qc3 {[%emt 0:00:12]} b6 {[%emt 0:02:38]} 11. b4 {[%emt 0:00:41]} cxb4 {[%emt 0:05:11]} 12. axb4 {[%emt 0:00:17]} Bd6 {[%emt 0:06:11]} 13. Nbd2 {[%emt 0:02:05]} Be6 {[%emt 0:05:00]} 14. Nc4 {[%emt 0:00:28]} O-O {[%emt 0:08:25]} 15. Nxd6 {[%emt 0:00:44] White is more active.} Nxd6 {[%emt 0:02:46]} 16. O-O {[%emt 0:01:18]} Rfc8 {[%emt 0:07:09]} 17. Nd2 {[%emt 0:02:35]} Qd7 {[%emt 0:05:43] [#]} (17... g5 $16 {is a better defense.}) 18. f4 $1 $18 {[%emt 0:01:54]} Nb5 {[%emt 0:02:48]} 19. Qb2 {[%emt 0:00:21]} Nd4 {[%emt 0:09:02]} 20. fxe5 {[%emt 0:00:27]} fxe5 {[%emt 0:00:02] [#]} 21. Nf3 $1 {[%emt 0:01:31]} Nxf3+ {[%emt 0:00:18]} 22. Rxf3 {[%emt 0:00:05]} Qd6 {[%emt 0:00:14]} 23. Kh2 {[%emt 0:01:05]} a5 {[%emt 0:05:32]} (23... Rcb8 $142 24. Bd2 Rd8) 24. bxa5 {[%emt 0:00:57]} (24. Bxb6 axb4 25. Bf2 (25. Rf6 Rxa1 26. Qxa1 c5 $16) 25... c5 $16) 24... bxa5 {[%emt 0:00:20]} 25. Qc3 {[%emt 0:01:21]} a4 {[%emt 0:00:51]} (25... Qb4 $142 26. Qxe5 Qb8 27. Qxb8 Rcxb8) 26. Bc5 {[%emt 0:00:26]} Qc7 {[%emt 0:00:17]} 27. Raf1 {[%emt 0:01:07]} Re8 {[%emt 0:00:47]} 28. Rf6 {[%emt 0:00:10]} Kg7 {[%emt 0:04:38]} 29. R6f3 {[%emt 0:03:25]} Kg8 $1 30. Qa3 {[%emt 0:01:52]} Qd8 $2 {[%emt 0:02:51]} (30... Qg7 {was necessary.} 31. Rf6 h6) 31. Bd6 {[%emt 0:01:22]} Qg5 {[%emt 0:01:15]} 32. Qc3 {[%emt 0:00:59]} (32. Qc5 a3 33. Rf6 (33. Bxe5 a2 $16) 33... a2 $18) 32... c5 {[%emt 0:04:43]} 33. Bxe5 {[%emt 0:01:50]} (33. Qxc5 $142 {aiming for Rf6.} Rac8 34. Qf2 (34. Qxe5 Qxe5+ 35. Bxe5 Rxc2 $16)) 33... a3 $2 {[%emt 0:03:48]} (33... Qe7 34. Qa3 Bg4) 34. Bf6 {[%emt 0:00:46] White is clearly winning.} Qh5 {[%emt 0:00:58]} 35. Qd2 {[%emt 0:00:39] Ba1 is the strong threat.} a2 {[%emt 0:00:10]} 36. Ba1 {[%emt 0:00:05] Weighted Error Value: White=0.27 (precise) /Black=0.41} 1-0

[Event "87th Spanish Championship 2022"]
[Site "Linares"]
[Date "2022.08.12"]
[Round "2.2"]
[White "Domingo Nunez, Ruben"]
[Black "Iturrizaga Bonelli, Eduardo"]
[Result "0-1"]
[ECO "E38"]
[WhiteElo "2361"]
[BlackElo "2619"]
[Annotator "TA"]
[PlyCount "76"]
[EventDate "2022.08.11"]
[EventType "swiss"]
[EventCountry "ESP"]
[SourceTitle "playchess.com"]
[Source "ChessBase"]
[SourceQuality "1"]
[TimeControl "5400+30"]

{[%evp 15,76,43,51,31,51,57,62,57,54,47,48,56,50,70,61,62,62,47,41,51,41,33,52,-40,-61,-25,-33,-80,-81,-70,-69,-108,-116,-121,-101,-177,-177,-166,-174,-172,-151,-583,-573,-559,-445,-472,-468,-425,-419,-676,-656,-1670,-1656,-29969,-886,-29970,-29971,-29976,-29977,-29976,-29977,-29973,-5289]} 1. d4 {[%emt 0:01:41]} Nf6 {[%emt 0:06:21]} 2. c4 {[%emt 0:00:04]} e6 {[%emt 0:00:12]} 3. Nc3 {[%emt 0:00:10]} Bb4 {[%emt 0:00:05]} 4. Qc2 {[%emt 0:00:05]} c5 {[%emt 0:01:31]} 5. dxc5 {[%emt 0:00:05]} Na6 {[%emt 0:01:43]} 6. a3 {[%emt 0:00:03]} Bxc3+ {[%emt 0:00:40]} 7. Qxc3 {[%emt 0:00:05]} Nxc5 {[%emt 0:00:04]} 8. b4 {[%emt 0:00:04] The main line 8.b4 scores better than 8.f3.} Na4 {[%emt 0:00:51]} 9. Qc2 {[%emt 0:00:04] E38: Nimzo-Indian: Classical: 4...c5.} b5 {[%emt 0:00:03]} 10. cxb5 {[%emt 0:00:02]} Nb6 {[%emt 0:00:04]} 11. Nf3 {[%emt 0:01:57] White is slightly better.} Bb7 {[%emt 0:00:06]} 12. e3 {[%emt 0:00:45]} Rc8 {[%emt 0:00:18]} 13. Qd1 {[%emt 0:00:04]} O-O {[%emt 0:02:36]} 14. Be2 {[%emt 0:05:24]} d6 {[%emt 0:08:50]} 15. O-O {[%emt 0:10:11]} e5 {[%emt 0:00:22]} 16. Bb2 {[%emt 0:17:23]} Qd7 {[%emt 0:25:50]} 17. Nd2 {[%emt 0:00:14]} Qf5 $1 {[%emt 0:04:28] [#]} 18. e4 $146 {[%emt 0:24:36]} ({Predecessor:} 18. Bf3 Bxf3 19. Nxf3 Nc4 20. Qe2 Qh5 21. Rac1 d5 22. Rc2 Rfe8 23. Rfc1 Qf5 24. h3 h5 25. a4 {½-½ (25) Atakisi,U (2412)-Stankovic,M (2465) Paracin 2019}) 18... Qg6 {[%emt 0:08:29]} 19. f4 {[%emt 0:10:25]} (19. f3 $14) 19... Nxe4 $15 {[%emt 0:01:22]} (19... Bxe4 20. Nxe4 Qxe4 21. fxe5 Qe3+ 22. Kh1 dxe5 23. Bd3 $11) 20. Bh5 {[%emt 0:00:01]} Qh6 $40 {[%emt 0:01:17][%mdl 128] ...Nxd2 is the strong threat. Black attacks.} 21. Bf3 {[%emt 0:00:42]} (21. Nxe4 $1 $15 Bxe4 22. Rf2) 21... Nxd2 $1 $17 {[%emt 0:03:27] 0x0.002363ea82f2dp-1022s more active pieces.} ({But not} 21... Qxf4 22. Bxe4 Qe3+ 23. Kh1 Bxe4 24. Re1 Bxg2+ 25. Kxg2 $11) 22. Qxd2 {[%emt 0:00:48]} Nc4 {[%emt 0:00:53][%cal Bb6c4,Bc4d2,Bd2c4][%mdl 32]} 23. Qc3 {[%emt 0:00:04] [#]} Bxf3 {[%emt 0:02:05]} 24. Rxf3 {[%emt 0:00:04]} d5 {[%emt 0:00:17] Threatens to win with ...d4.} 25. fxe5 {[%emt 0:17:32]} (25. Rf2 $17 {was necessary.}) 25... Nd2 $19 {[%emt 0:00:49][%mdl 64] Discovered Attack} 26. Rh3 {[%emt 0:00:02]} Rxc3 {[%emt 0:00:26]} 27. Rxh6 {[%emt 0:00:03]} Rc2 {[%emt 0:00:07]} 28. Bd4 $2 {[%emt 0:00:00] This costs White the game.} (28. Ra6 $17 {is more resistant.} Rxb2 29. Rxa7) 28... gxh6 {[%emt 0:02:49]} 29. Bxa7 {[%emt 0:00:01]} Nc4 {[%emt 0:00:26]} 30. a4 {[%emt 0:00:29]} Rd8 {[%emt 0:03:00] Hoping for ...d4.} 31. Bd4 {[%emt 0:07:35]} Rd2 {[%emt 0:00:24]} 32. Ba7 {[%emt 0:00:14]} (32. Bc3 $142 Rd3 33. Be1) 32... d4 {[%emt 0:00:55][%cal Bd5d4,Bd4d3,Bd3d2][%mdl 32]} 33. Rc1 {[%emt 0:00:06] [#]} d3 $1 {[%emt 0:00:33] And now ...Rc2 would win.} 34. Rxc4 {[%emt 0:01:27]} (34. h4 Rc2) 34... Rd1+ {[%emt 0:00:05]} 35. Kf2 {[%emt 0:00:03]} d2 {[%emt 0:00:03] Black mates.} 36. Rg4+ {[%emt 0:00:03] [#]} Kh8 $1 {[%emt 0:00:05]} ({And not} 36... Kf8 37. Bc5+ Ke8 38. Rg8+ Kd7 39. Rxd8+ Kxd8 40. Ke3 $17 (40. Ke2 Ra1 $17)) 37. Rd4 {[%emt 0:03:02]} Rxd4 {[%emt 0:00:05]} 38. Bxd4 {[%emt 0:00:07] [#]} Rf1+ $3 {[%emt 0:00:04][%mdl 576] Clearance, Promotion.  Weighted Error Value: White=0.82/Black=0.04 (flawless)} 0-1

[Event "87th Spanish Championship 2022"]
[Site "Linares"]
[Date "2022.08.12"]
[Round "2.3"]
[White "Salgado Lopez, Ivan"]
[Black "Gomez Dieguez, David"]
[Result "1-0"]
[ECO "E21"]
[WhiteElo "2604"]
[BlackElo "2372"]
[Annotator "TA"]
[PlyCount "119"]
[EventDate "2022.08.11"]
[EventType "swiss"]
[EventCountry "ESP"]
[SourceTitle "playchess.com"]
[Source "ChessBase"]
[SourceQuality "1"]
[TimeControl "5400+30"]

{[%evp 19,119,31,33,18,20,4,24,16,17,16,18,0,0,0,0,0,57,0,0,6,60,26,32,28,24,35,37,24,52,31,31,25,61,26,316,88,112,119,85,108,101,0,0,0,0,0,0,0,0,0,0,0,0,0,0,0,0,0,8,0,367,367,365,356,499,476,684,672,606,577,558,565,644,610,1008,956,29971,29972,29972,29970,29968,29968,29974,29975,29974,29975,29978,29979,29981,29982,29982,29983,29983,29984,29984,29985,29985,29984,29984,29985,29986,29983]} 1. d4 {[%emt 0:00:04]} Nf6 {[%emt 0:00:03]} 2. c4 {[%emt 0:00:15]} e6 {[%emt 0:00:03]} 3. Nc3 {[%emt 0:00:11]} Bb4 {[%emt 0:00:03]} 4. Nf3 {[%emt 0:00:14]} b6 {[%emt 0:00:12]} 5. e3 {[%emt 0:00:15]} Bb7 {[%emt 0:03:37]} 6. Bd3 {[%emt 0:00:22]} Ne4 {[%emt 0:06:33]} 7. O-O {[%emt 0:00:14]} Bxc3 {[%emt 0:03:33]} 8. bxc3 {[%emt 0:00:26]} O-O {[%emt 0:15:34]} 9. Ne1 {[%emt 0:01:38]} f5 {[%emt 0:00:12]} 10. f3 {[%emt 0:00:15]} Nf6 {[%emt 0:02:51]} (10... Nxc3 $2 11. Qc2 $18) 11. c5 {[%emt 0:10:59] E43: Nimzo-Indian: Rubinstein: 4...b6.} bxc5 {[%emt 0:21:49]} 12. Rb1 {[%emt 0:00:42]} Bc6 {[%emt 0:02:32]} 13. dxc5 {[%emt 0:14:31] [#] White has an edge.} a5 $146 {[%emt 0:00:58]} ({Predecessor:} 13... Nd5 14. Qc2 Qe7 15. c4 Nf6 16. Qc3 Na6 17. Qa5 Nxc5 18. Qxc7 Rfc8 19. Qa5 d6 {1-0 (42) Ehlvest,J (2552)-Soskov,V (2288) Viljandi 2014}) 14. Nc2 {[%emt 0:03:42]} Ba4 {[%emt 0:03:56]} 15. Ba3 {[%emt 0:06:17]} Nc6 {[%emt 0:04:28]} 16. Qd2 {[%emt 0:00:23]} Bxc2 {[%emt 0:01:37]} 17. Bxc2 {[%emt 0:01:26]} Rb8 {[%emt 0:01:33]} (17... Ne5 $11) 18. Ba4 {[%emt 0:15:02]} ({White should try} 18. c4 $14) 18... Rxb1 $11 {[%emt 0:01:13]} 19. Rxb1 {[%emt 0:00:07]} Qa8 {[%emt 0:02:02]} (19... Ne5 $11) 20. Rb5 {[%emt 0:01:32]} Ne5 {[%emt 0:07:36]} 21. Qd4 {[%emt 0:10:27] Against Nc4} Nc6 {[%emt 0:00:30]} 22. Qd1 {[%emt 0:02:10]} Nd5 {[%emt 0:10:04]} 23. Rb3 {[%emt 0:04:52]} Ne5 {[%emt 0:01:57]} 24. c4 {[%emt 0:02:39]} Nxc4 {[%emt 0:01:16]} 25. Bxd7 {[%emt 0:01:07]} Rf6 {[%emt 0:00:03]} 26. Qd4 {[%emt 0:02:52]} (26. Bc1 $5 {[%cal Rd1d4]} a4 27. Bxa4 $1 $16) 26... Ncxe3 {[%emt 0:01:42][%mdl 8192]} (26... a4 $11 {and Black has nothing to worry.} 27. Rd3 Nxa3) 27. Rxe3 $2 {[%emt 0:08:42]} (27. Bb2 $18 {[%cal Od7e6] and White stays clearly on top. Strongly threatening Bxe6+!} Rg6 {[#]} 28. Bxe6+ $1 (28. Rxe3 Nxe3 29. Qxe3 Qd5 $16) 28... Kh8 29. Bf7 (29. Rxe3 Nxe3 30. Qxe3 Qe8 $11) 29... Rxg2+ 30. Kh1) 27... Nxe3 $16 {[%emt 0:00:01]} 28. Qxe3 {[%emt 0:00:09]} Qd5 {[%emt 0:00:29][%csl LRa2,LRd7]} 29. Ba4 {[%emt 0:06:16] Bb2 is the strong threat.} Qxa2 {[%emt 0:00:04]} 30. Qb3 {[%emt 0:02:52]} (30. Qc3 $16) 30... Qa1+ {[%emt 0:07:12]} 31. Kf2 {[%emt 0:00:08]} Qd4+ {[%emt 0:00:01]} 32. Kf1 {[%emt 0:01:01] And now Bb2 would win.} Qa1+ {[%emt 0:00:35]} 33. Ke2 {[%emt 0:01:14] Black must now prevent Bb2.} Qe5+ {[%emt 0:00:02]} 34. Kd3 {[%emt 0:00:57] Hoping for Bb2.} Rf8 {[%emt 0:00:09]} 35. Bd7 $36 {[%emt 0:00:31][%mdl 2048] White is pushing. A strong pair of Bishops.} Rd8 {[%emt 0:01:30]} 36. c6 {[%emt 0:00:08]} Kf7 {[%emt 0:00:06] Inhibits Be7.} 37. g3 {[%emt 0:01:28] Active counter play!} a4 {[%emt 0:01:32]} 38. Qb4 {[%emt 0:00:47]} Qd5+ {[%emt 0:00:34]} 39. Kc2 {[%emt 0:00:44] aiming for Qe7+. The board is on fire.} Qb3+ $2 {[%emt 0:01:05][%mdl 8192] Black is now going downhill.} (39... Kg6 $11 {and Black stays safe.}) 40. Qxb3 $18 {[%emt 0:00:35]} axb3+ {[%emt 0:00:00]} 41. Kxb3 {[%emt 0:00:57]} Ra8 {[%emt 0:00:02]} (41... h5 $142 42. Bc1 e5 43. Bxf5 Rd6) 42. Bb2 {[%emt 0:00:26]} Ra5 {[%emt 0:00:50]} (42... Rb8+ $142 43. Kc2 Ra8) 43. Kb4 {[%emt 0:01:19]} Ra7 {[%emt 0:01:06]} 44. Bd4 {[%emt 0:00:19]} Ra8 {[%emt 0:00:40]} 45. Be5 {[%emt 0:00:21]} Ra7 {[%emt 0:00:01]} 46. Kb5 {[%emt 0:00:15]} g6 {[%emt 0:00:11] [#]} 47. Bxc7 $1 {[%emt 0:00:19][%mdl 512]} Rxc7 {[%emt 0:00:21]} (47... Ke7 48. Ba5) 48. Kb6 {[%emt 0:00:05][%mdl 64] Trapped Piece. White mates.} Rxc6+ {[%emt 0:00:03]} 49. Bxc6 {[%emt 0:00:18] KB-KP} e5 {[%emt 0:00:21]} 50. Kc5 {[%emt 0:00:14]} g5 {[%emt 0:00:50]} 51. Kd5 {[%emt 0:00:24]} Kf6 {[%emt 0:00:01]} 52. Be8 {[%emt 0:00:41]} g4 {[%emt 0:01:40]} 53. fxg4 {[%emt 0:00:21]} f4 {[%emt 0:00:16]} 54. gxf4 {[%emt 0:00:21]} exf4 {[%emt 0:00:02] KB-KPP} 55. h4 {[%emt 0:01:06]} f3 {[%emt 0:00:32]} 56. Ke4 {[%emt 0:00:09]} f2 {[%emt 0:00:03]} 57. Bb5 {[%emt 0:00:06]} Ke6 {[%emt 0:00:43]} 58. Bf1 {[%emt 0:00:18]} Kf6 {[%emt 0:00:04]} 59. Bh3 {[%emt 0:00:16]} Ke6 {[%emt 0:02:23]} 60. Kf3 {[%emt 0:00:13] Weighted Error Value: White=0.20 (precise) /Black=0.51} 1-0